Cogmind - Beta 15 @@@ ROGUE MODE // 2025.08.03 @ 00:02:16 Player: JuustuToug Result: Destroyed by Executioner with Helical Railgun Performance ------------- Evolutions (9) 4500 Regions Visited (20) 4000 Robots Destroyed (85) 425 Value Destroyed (3071) 3071 Prototype IDs (47) 940 Alien Tech Used (0) 0 Bonus (204) 204 TOTAL SCORE: 13140 Bonus ------- Follower Combat Kills 274 Aligned with FarCom 300 Friendly Fire -370 Cogmind --------- Core Integrity 0/1600 Matter 300/300 Energy 47/100 System Corruption 0% Temperature Cool (0) Movement Core (50) Location -1/Command Parts ------- > --- POWER (2) -------- (None) > --- PROPULSION (7) --- (None) > --- UTILITY (14) ----- Enhanced Optical Array Experimental Signal Interpreter > --- WEAPON (2) ------- (None) > --- INVENTORY (5) ---- Antimatter Reactor Advanced Heat Sink Advanced Recalibrator Peak State ------------ > --- POWER ------------ Light Fission Core Light Quantum Reactor > --- PROPULSION ------- Cooled Cesium-ion Thruster Cooled Cesium-ion Thruster Cooled Cesium-ion Thruster Cooled Cesium-ion Thruster Biomechanical Wings Impulse Thruster Array > --- UTILITY ---------- Advanced Power Amplifier Experimental Heat Sink Quantum Shading Machine Enhanced Optical Array Experimental Signal Interpreter Improved Melee Analysis Suite Advanced Transmission Jammer Advanced ECM Suite Advanced Reaction Control System Improved Propulsion Shielding Experimental Shield Generator Hacking Suite Improved Hacking Suite Improved System Shield > --- WEAPON ----------- Long-range Proton Cannon Heavy Pick > --- INVENTORY -------- Antimatter Reactor Light Quantum Reactor Advanced Heat Sink Advanced Weight Redist. System Advanced Recalibrator [Rating: 157] Favorites ----------- Power Enhanced Nuclear Core Engine Ion Engine Power Core Enhanced Nuclear Core Reactor Light Quantum Reactor Propulsion Cooled Cesium-ion Thruster Leg Aluminum Leg Hover Unit Antigrav System Flight Unit Cooled Cesium-ion Thruster Utility Small Storage Unit Device Advanced Weight Redist. System Storage Small Storage Unit Processor Enhanced Optical Array Hackware Hacking Suite Protection Hardened Medium Armor Plating Weapon Cooled Particle Cannon Energy Gun Beamcaster Energy Cannon Cooled Particle Cannon Ballistic Gun Minigun Launcher Mini Grenade Launcher Special Weapon Improved Remote Datajack Slashing Weapon Ripper Piercing Weapon Heavy Pick Build | -11 -10 -10 -9 -9 -9 -8 -8 -7 -7 -7 -7 -7 -6 -5 -5 -4 -3 -2 -1 -1 ------- Run | Yrd Mat Min Mat Min Exi Min Mat Fac Was Fac Low Low Fac Fac Ext Fac Res Res Acc Com Slots Evolved 18 | . . . 2 . . . 2 2 . . . . 2 2 . 2 2 2 2 . Power 1 | . . . . . . . . . . . . . . . . 1 . . . . Propulsion 5 | . . . 2 . . . . . . . . . . . . . 1 1 1 . Utility 12 | . . . . . . . 2 2 . . . . 2 2 . 1 1 1 1 . Weapon . | . . . . . . . . . . . . . . . . . . . . . Parts Attached 129 | 6 10 8 8 . 1 1 3 8 1 2 3 1 15 15 19 15 4 3 4 2 Power 21 | 1 3 1 2 . . 1 . . 1 1 . . . 2 2 4 . 1 1 1 Engine 7 | 1 2 1 1 . . 1 . . . . . . . 1 . . . . . . Core 8 | . 1 . 1 . . . . . . 1 . . . 1 2 2 . . . . Reactor 6 | . . . . . . . . . 1 . . . . . . 2 . 1 1 1 Propulsion 34 | 2 3 1 4 . 1 . . . . . . . 5 3 11 3 1 . . . Treads . | . . . . . . . . . . . . . . . . . . . . . Leg 14 | 2 3 1 4 . . . . . . . . . . . 4 . . . . . Wheel . | . . . . . . . . . . . . . . . . . . . . . Hover 7 | . . . . . . . . . . . . . . 2 3 2 . . . . Flight 13 | . . . . . 1 . . . . . . . 5 1 4 1 1 . . . Utility 48 | 1 2 2 1 . . . 3 5 . . 2 . 5 7 5 8 2 2 3 . Device 22 | . 1 . . . . . . 2 . . . . 3 4 2 5 2 . 3 . Storage 4 | 1 . 2 . . . . . . . . . . . . . 1 . . . . Processor 7 | . 1 . . . . . . . . . . . . 3 2 1 . . . . Hackware 9 | . . . . . . . 2 1 . . 2 . 2 . . 1 . 1 . . Protection 6 | . . . 1 . . . 1 2 . . . . . . 1 . . 1 . . Artifact . | . . . . . . . . . . . . . . . . . . . . . Weapon 26 | 2 2 4 1 . . . . 3 . 1 1 1 5 3 1 . 1 . . 1 Energy Gun 7 | . . . 1 . . . . . . 1 . . 3 1 . . . . . 1 Energy Cannon 8 | . . 2 . . . . . 3 . . . . 2 . . . 1 . . . Ballistic Gun 5 | 2 2 1 . . . . . . . . . . . . . . . . . . Ballistic Cannon . | . . . . . . . . . . . . . . . . . . . . . Launcher 1 | . . 1 . . . . . . . . . . . . . . . . . . Special Weapon 2 | . . . . . . . . . . . 1 . . 1 . . . . . . Impact Weapon . | . . . . . . . . . . . . . . . . . . . . . Slashing Weapon 2 | . . . . . . . . . . . . 1 . . 1 . . . . . Piercing Weapon 1 | . . . . . . . . . . . . . . 1 . . . . . . Special Melee Weapon . | . . . . . . . . . . . . . . . . . . . . . Unidentified Prototypes 10 | . . . 1 . . . . 1 . 1 1 . 3 . . . 1 . 2 . Corrupted Parts 1 | . . . . . . . . . . . . . 1 . . . . . . . System Corruption 8 | . . . . . . . . . . . . . 8 . . . . . . . Parts Lost 53 | . 3 1 . . . . 1 . . . . . 2 10 5 6 . . 3 22 Power 10 | . 2 . . . . . . . . . . . . 1 1 2 . . 1 3 Propulsion 14 | . 1 . . . . . . . . . . . . 4 2 1 . . . 6 Utility 24 | . . . . . . . . . . . . . 2 5 2 3 . . . 12 Weapon 5 | . . 1 . . . . 1 . . . . . . . . . . . 2 1 Highest Loss Streak 22 | . 1 1 . . . . 1 . . . . . 1 10 3 4 . . 3 22 To Critical Strikes 1 | . . . . . . . . . . . . . . . . . . . . 1 Average Backups 6 | 2 7 7 7 8 8 8 7 7 8 7 8 8 7 6 7 5 3 4 4 4 Power 1 | . 1 1 1 1 1 1 1 1 1 1 1 1 1 1 1 1 . 1 1 1 Propulsion 1 | 1 1 1 . . . . 1 3 4 4 4 4 3 . . 2 1 1 . . Utility 2 | . 1 3 5 6 6 6 3 1 2 2 2 2 1 2 1 1 . 1 2 2 Weapon 1 | . 2 1 1 1 1 1 . . . . . 1 1 2 3 . . . . . Tool/Special . | . . . . . . . . . . . . . . . . . . . . . Unused Backups 30 | . 4 3 2 1 . . 3 2 1 3 4 . 2 . 3 . . 1 . 1 Power 6 | . . 2 . . . . . 1 . 1 . . 1 . . . . 1 . . Propulsion 9 | . 2 1 . . . . . 1 . 1 2 . 1 . 1 . . . . . Utility 12 | . 1 . 1 1 . . 3 . 1 . 2 . . . 2 . . . . 1 Weapon 2 | . 1 . 1 . . . . . . . . . . . . . . . . . Tool/Special 1 | . . . . . . . . . . 1 . . . . . . . . . . Average Slot Usage (%) 86 | . 98 99 96 100 83 66 71 75 76 76 76 76 76 85 83 88 87 94 94 76 Engine 3 | . 12 14 2 . . 9 9 7 . . . . . 2 . . . . . . Core 4 | . 1 . 8 11 11 1 . . . 3 7 7 6 2 5 5 4 4 3 . Reactor 1 | . . . . . . . . . 6 3 . . . . . 4 4 4 4 6 Leg 11 | . 28 28 40 44 23 . . . . . . . . . 1 . . . . . Flight 8 | . . . . . 4 11 9 7 7 7 7 7 8 15 7 20 19 21 24 19 Device 10 | . 2 . . . . . . 6 7 7 7 7 12 23 20 25 27 26 30 28 Storage 7 | . 14 14 11 11 11 11 9 7 7 7 7 7 6 5 4 1 . . . . Processor 6 | . 10 14 3 . . . . . . . . . . 5 12 15 14 13 8 8 Hackware 9 | . . . . . . . 17 22 23 23 23 23 19 14 11 9 9 12 12 9 Protection 4 | . . . 7 11 11 11 9 7 7 7 7 7 11 . 3 . . 3 4 3 Energy Gun 2 | . . . 7 11 11 11 8 . . 1 7 7 2 1 . . . . . 1 Energy Cannon 4 | . . 11 3 . . . . 14 15 13 7 7 7 1 3 . 3 4 3 . Ballistic Gun 6 | . 28 16 11 11 11 11 9 . . . . . . . . . . . . . Peak Build Rating 157 | 6 10 16 25 25 49 49 56 61 65 65 74 68 79 74 79 99 125 136 157 154 Average Rating 57 | 4 7 11 22 24 36 49 55 60 64 64 65 68 70 64 69 88 112 135 149 127 On Entrance 59 | . 6 8 16 25 25 49 49 53 61 65 65 68 68 56 66 74 87 125 136 144 Naked Turns . | . . . . . . . . . . . . . . . . . . . . . Heaviest Build 53 | 14 16 28 23 21 21 24 26 34 42 42 34 34 45 32 40 36 46 48 51 53 Greatest Support 67 | 20 20 27 52 52 52 50 50 50 50 50 50 50 50 35 59 45 52 61 66 67 Greatest Overweight (x) 11 | 4 . 1 . . . . . . . . . . 11 4 2 1 . . . . Average Overweight (x) . | . . . . . . . . . . . . . . . . . . . . . Largest Inventory Capacity 10 | 8 8 10 8 8 8 8 8 8 8 8 8 8 8 8 8 8 5 5 5 5 Average Capacity 7 | 7 8 8 8 8 8 8 8 8 8 8 8 8 8 8 7 5 5 5 5 5 Most Carried 9 | 4 8 9 8 8 8 8 8 8 8 8 8 8 8 8 8 8 5 5 5 5 Average Carried 6 | 2 7 7 7 7 8 8 7 7 7 7 7 8 7 6 7 5 3 4 4 4 Final Capacity 8 | 8 8 8 8 8 8 8 8 8 8 8 8 8 8 8 8 5 5 5 5 5 Final Carried 8 | 4 8 8 8 8 8 8 7 8 8 8 8 8 8 8 8 3 5 5 4 3 Class Distribution -------------------- 35% | Hacker-Mutant 24% | Mutant 21% | Hacker-Sprinter 17% | Scavenger-Mutant Dominant Class ---------------- Mutant | -10/Materials Mutant | -10/Mines Scavenger-Mutant | -9/Materials Scavenger-Mutant | -9/Mines Mutant | -9/Exiles Mutant | -8/Mines Hacker-Mutant | -8/Materials Hacker-Mutant | -7/Factory Hacker-Mutant | -7/Waste Hacker-Mutant | -7/Factory Hacker-Mutant | -7/Lower Caves Hacker-Mutant | -7/Lower Caves Hacker-Mutant | -6/Factory Hacker-Sprinter | -5/Factory Hacker-Mutant | -5/Extension Hacker-Sprinter | -4/Factory Hacker-Sprinter | -3/Research Hacker-Sprinter | -2/Research Hacker-Sprinter | -1/Access Hacker-Sprinter | -1/Command Resources | -11 -10 -10 -9 -9 -9 -8 -8 -7 -7 -7 -7 -7 -6 -5 -5 -4 -3 -2 -1 -1 ----------- Run | Yrd Mat Min Mat Min Exi Min Mat Fac Was Fac Low Low Fac Fac Ext Fac Res Res Acc Com Matter Collected 2422 | 196 369 115 204 24 . 36 . 151 10 . 85 33 264 219 120 345 92 . 159 . Remotely 189 | . . . . . . . . . . . . . . . . 189 . . . . Salvage Created 4467 | . 529 116 722 . . 31 29 172 1032 . 300 46 979 108 235 88 . 40 40 . Parts 197 | . 40 10 45 . . 5 2 10 12 . 9 3 39 8 8 4 . . 2 . Haulers Intercepted 3 | . . . 2 . . . . . . . . . 1 . . . . . . . Recyclers Shooed . | . . . . . . . . . . . . . . . . . . . . . Parts Field Recycled . | . . . . . . . . . . . . . . . . . . . . . Retrieved Matter . | . . . . . . . . . . . . . . . . . . . . . Parts Self-Destructed 16 | . . . . . . . . . . . 13 3 . . . . . . . . Prevented 2 | . . . . . . . . . . . 2 . . . . . . . . . Kills | -11 -10 -10 -9 -9 -9 -8 -8 -7 -7 -7 -7 -7 -6 -5 -5 -4 -3 -2 -1 -1 ------- Run | Yrd Mat Min Mat Min Exi Min Mat Fac Was Fac Low Low Fac Fac Ext Fac Res Res Acc Com Combat Hostiles Destroyed 57 | . 13 5 12 . . 2 . 1 1 . 5 1 12 2 3 . . . . . Melee 4 | . . . . . . . . . . . . . . 2 2 . . . . . Guns 28 | . 13 . 11 . . 2 . . . . 1 . 1 . . . . . . . Cannons 16 | . . 2 1 . . . . 1 1 . 2 1 8 . . . . . . . AOE 7 | . . 3 . . . . . . . . 1 . 3 . . . . . . . Classes Destroyed 12 | . 4 . 3 . . . . . 1 . 1 1 2 . . . . . . . Worker 6 | . . . 1 . . . . . . . . . 5 . . . . . . . Hauler 3 | . . . 2 . . . . . . . . . 1 . . . . . . . Recycler 1 | . . . . . . . . . . . . . 1 . . . . . . . Operator 3 | . 1 . 2 . . . . . . . . . . . . . . . . . Watcher 13 | . 2 . 2 . . . 1 3 . . . . 1 . . 2 . 1 1 . Swarmer 8 | . 3 3 . . . 2 . . . . . . . . . . . . . . Grunt 36 | . 10 2 11 . . . . . . . 4 . 9 . . . . . . . Sentry 5 | . . . 1 . . . . 1 . . . . . . 3 . . . . . Hunter 2 | . . . . . . . . . . . . . 2 . . . . . . . Programmer 4 | . . . . . . . . . . . . 1 1 2 . . . . . . Behemoth 1 | . . . . . . . . . . . 1 . . . . . . . . . Compactor 1 | . . . . . . . . . 1 . . . . . . . . . . . Wasp 1 | . . . . . . . . . 1 . . . . . . . . . . . Thug 1 | . . . . . . . . . . . 1 . . . . . . . . . Best Kill Streak 9 | . 3 3 4 . . 2 1 3 1 . 2 1 9 1 2 1 . 1 1 . Combat Bots Only 3 | . 3 3 3 . . 2 . 1 1 . 2 1 3 1 2 . . . . . Max Kills in Single Turn 8 | . 1 3 2 . . 1 1 1 1 . 2 1 8 1 1 1 . 1 1 . Gunslinging . | . . . . . . . . . . . . . . . . . . . . . Exploded 3 | . . 3 . . . . . . . . 1 . 2 . . . . . . . Melee 1 | . . . . . . . . . . . . . . 1 1 . . . . . Uniques/NPCs Destroyed . | . . . . . . . . . . . . . . . . . . . . . Combat | -11 -10 -10 -9 -9 -9 -8 -8 -7 -7 -7 -7 -7 -6 -5 -5 -4 -3 -2 -1 -1 -------- Run | Yrd Mat Min Mat Min Exi Min Mat Fac Was Fac Low Low Fac Fac Ext Fac Res Res Acc Com Hostile Shots Fired 590 | . 79 25 35 . . 20 43 18 . . 11 4 62 48 47 4 10 4 12 168 Missed 214 | . 30 10 13 . . 8 16 9 . . 7 3 29 15 17 1 1 3 4 48 Hits 376 | . 49 15 22 . . 12 27 9 . . 4 1 33 33 30 3 9 1 8 120 Melee 1 | . . . . . . . . . . . . . . . . . . . . 1 Projectile 375 | . 49 15 22 . . 12 27 9 . . 4 1 33 33 30 3 9 1 8 119 Critical Strikes 18 | . 2 . 1 . . 1 1 . . . . 1 3 1 1 . . . . 7 Damage Taken 7686 | . 623 293 267 . . 92 424 72 . 69 124 16 827 675 705 341 174 24 258 2702 Core 2440 | . 94 28 22 . . 7 79 11 . 16 . 16 92 84 250 97 22 . 49 1573 Absorbed by Shields 488 | . . . . . . . . . . . . . . . . . . . . 488 Redirected to Shielding 100 | . . . . . . . . . . . . . . . . . . . 29 71 Core Remaining (%) 86 | 100 . 51 . . . 92 85 . . . . 93 89 . 66 91 98 100 . . Volleys Fired 194 | . 44 14 37 . . 4 9 7 10 . 11 1 28 4 5 . 8 4 8 . Largest 2 | . 2 2 2 . . 2 2 2 2 . 2 1 2 2 1 . 1 1 1 . Hottest 159 | . 40 88 100 . . 100 100 146 146 . 145 90 159 95 90 . 81 81 81 . Shots Fired 358 | . 88 27 74 . . 8 18 14 20 . 23 1 55 5 5 . 8 4 8 . Gun 233 | . 88 20 65 . . 8 16 . . . 12 . 23 1 . . . . . . Cannon 124 | . . 6 9 . . . 2 14 20 . 11 1 32 4 5 . 8 4 8 . Launcher 1 | . . 1 . . . . . . . . . . . . . . . . . . Special . | . . . . . . . . . . . . . . . . . . . . . Kinetic 158 | . 88 20 37 . . 4 9 . . . . . . . . . . . . . Thermal 131 | . . 6 37 . . 4 9 7 10 . 11 1 37 4 5 . . . . . Explosive 1 | . . 1 . . . . . . . . . . . . . . . . . . Electromagnetic 68 | . . . . . . . . 7 10 . 12 . 18 1 . . 8 4 8 . Robot Hit Streak 21 | . 17 18 11 . . 4 10 7 21 . 4 3 10 7 6 . 7 3 4 . Robot Miss Streak 5 | . 4 1 3 . . 2 1 1 1 . 2 . 4 2 . . 5 2 2 . Penetration Max . | . . . . . . . . . . . . . . . . . . . . . Secondary Targets 3 | . 1 . 1 . . 1 . . . . . . . . . . . . . . Max Gunslinging Chain 1 | . 1 . 1 . . 1 . . . . . . . . . . . . . . Shots Hit Robots 266 | . 64 21 46 . . 4 17 11 18 . 14 1 34 12 11 3 3 2 5 . Core Hits 124 | . 28 8 20 . . 2 4 5 4 . 12 1 24 4 5 2 1 1 3 . Critical Kills . | . . . . . . . . . . . . . . . . . . . . . Critical Parts Destroyed 1 | . 1 . . . . . . . . . . . . . . . . . . . Critical Strikes 10 | . 1 . 3 . . . 2 . . . . . . 1 2 . 1 . . . Burn 5 | . . . 3 . . . 2 . . . . . . . . . . . . . Destroy 1 | . 1 . . . . . . . . . . . . . . . . . . . Corrupt 1 | . . . . . . . . . . . . . . . . . 1 . . . Sever 2 | . . . . . . . . . . . . . . . 2 . . . . . Impale 1 | . . . . . . . . . . . . . . 1 . . . . . . Melee Attacks 39 | . . . . . . . . . . . . . 1 16 7 4 2 5 4 . Impact . | . . . . . . . . . . . . . . . . . . . . . Slashing 8 | . . . . . . . . . . . . . 1 . 7 . . . . . Piercing 31 | . . . . . . . . . . . . . . 16 . 4 2 5 4 . Sneak Attacks 2 | . . . . . . . . . . . . . . 1 . 1 . . . . Combat Hostiles . | . . . . . . . . . . . . . . . . . . . . . Follow-up Attacks . | . . . . . . . . . . . . . . . . . . . . . Damage Inflicted 8238 | . 747 420 899 . . 78 310 466 704 . 710 67 2251 437 490 236 116 118 189 . Guns 2471 | . 747 125 808 . . 78 265 . . . 175 . 268 5 . . . . . . Cannons 3465 | . . 82 91 . . . 45 466 704 . 306 67 915 102 264 . 116 118 189 . Explosions 1470 | . . 213 . . . . . . . . 229 . 1028 . . . . . . . Melee 832 | . . . . . . . . . . . . . 40 330 226 236 . . . . Ramming . | . . . . . . . . . . . . . . . . . . . . . Kinetic 1364 | . 747 125 335 . . 17 140 . . . . . . . . . . . . . Thermal 4716 | . . 136 564 . . 61 170 330 534 . 535 67 1953 102 264 . . . . . Explosive 159 | . . 159 . . . . . . . . . . . . . . . . . . Electromagnetic 1167 | . . . . . . . . 136 170 . 175 . 258 5 . . 116 118 189 . Impact . | . . . . . . . . . . . . . . . . . . . . . Slashing 266 | . . . . . . . . . . . . . 40 . 226 . . . . . Piercing 566 | . . . . . . . . . . . . . . 330 . 236 . . . . Highest Corruption 16 | . . . . . . . . . . 5 5 5 16 8 8 3 . . . . Average Corruption 7 | . . . . . . . . . . 4 5 5 12 7 8 2 . . . . Corruption Purged . | . . . . . . . . . . . . . . . . . . . . . Corruption Blocked . | . . . . . . . . . . . . . . . . . . . . . Effects 77 | . . . . . . . . . . 9 9 2 25 13 18 1 . . . . Message Errors 22 | . . . . . . . . . . 6 3 1 5 5 2 . . . . . Matter Fused 16 | . . . . . . . . . . 1 1 . 7 1 6 . . . . . Heat Flow Errors 10 | . . . . . . . . . . 1 2 . 3 2 2 . . . . . Energy Discharges 8 | . . . . . . . . . . . 1 . 1 2 3 1 . . . . Parts Rejected 2 | . . . . . . . . . . . . 1 . . 1 . . . . . Data Loss (minor) 9 | . . . . . . . . . . 1 . . 3 3 2 . . . . . Data Loss (major) 3 | . . . . . . . . . . . 1 . 1 . 1 . . . . . Misfires 2 | . . . . . . . . . . . 1 . 1 . . . . . . . Alerts 2 | . . . . . . . . . . . . . 1 . 1 . . . . . Misdirections 2 | . . . . . . . . . . . . . 2 . . . . . . . Weapon Failures 1 | . . . . . . . . . . . . . 1 . . . . . . . Overload Shots 56 | . . . . . . . . 7 10 . 8 1 22 3 5 . . . . . Effects 5 | . . . . . . . . . . . . . 3 1 1 . . . . . Energy Bleed 1 | . . . . . . . . . . . . . 1 . . . . . . . Heat Surge 2 | . . . . . . . . . . . . . 1 1 . . . . . . Short Circuit 2 | . . . . . . . . . . . . . 1 . 1 . . . . . Overflow Damage 387 | . . 5 . . . . . 44 27 . . . 233 46 . 19 10 3 . . Projectiles 123 | . . . . . . . . 44 27 . . . 39 . . . 10 3 . . Explosions 199 | . . 5 . . . . . . . . . . 194 . . . . . . . Melee 65 | . . . . . . . . . . . . . . 46 . 19 . . . . Knockbacks . | . . . . . . . . . . . . . . . . . . . . . Impact . | . . . . . . . . . . . . . . . . . . . . . Kinetic . | . . . . . . . . . . . . . . . . . . . . . Secondary . | . . . . . . . . . . . . . . . . . . . . . Self-Inflicted Damage 264 | . . 92 . . . . . . . . 58 . 114 . . . . . . . Shots 7 | . . 3 . . . . . . . . 1 . 3 . . . . . . . Rammed . | . . . . . . . . . . . . . . . . . . . . . Targets Rammed . | . . . . . . . . . . . . . . . . . . . . . Kicked . | . . . . . . . . . . . . . . . . . . . . . Crushed . | . . . . . . . . . . . . . . . . . . . . . Highest Temperature 428 | . 33 235 320 . . 281 428 73 184 130 180 8 326 300 230 14 169 49 48 . Average Temperature 92 | . 11 76 88 . . 144 165 31 74 68 77 6 99 101 89 14 100 28 22 . Received Heat Transfer 1420 | . 324 120 162 . . . 162 24 . . 36 . 282 . 199 . 33 . . 78 Effects 8 | . . . 2 . . . . . . . . . . 1 5 . . . . . Interference 7 | . . . 2 . . . . . . . . . . . 5 . . . . . Short Circuit 1 | . . . . . . . . . . . . . . 1 . . . . . . Siege Activations . | . . . . . . . . . . . . . . . . . . . . . Martial Activations . | . . . . . . . . . . . . . . . . . . . . . Shielding Activations . | . . . . . . . . . . . . . . . . . . . . . Robots Disrupted . | . . . . . . . . . . . . . . . . . . . . . Combat Hostiles . | . . . . . . . . . . . . . . . . . . . . . Robots Corrupted . | . . . . . . . . . . . . . . . . . . . . . Combat Hostiles . | . . . . . . . . . . . . . . . . . . . . . Parts Fried 4 | . . . . . . . . . . . . . 1 . . . . 3 . . Impact Corruptions . | . . . . . . . . . . . . . . . . . . . . . Robots Melted 2 | . . . . . . . . . . . 1 . . . 1 . . . . . Combat Hostiles 2 | . . . . . . . . . . . 1 . . . 1 . . . . . Parts Melted 10 | . . 1 1 . . 1 . 1 1 . 3 . 2 . . . . . . . Heat Transferred 5318 | . . 198 1221 . . 111 444 300 500 . 487 50 1670 87 250 . . . . . Parts Sabotaged . | . . . . . . . . . . . . . . . . . . . . . Parts Stolen . | . . . . . . . . . . . . . . . . . . . . . Parts Stripped . | . . . . . . . . . . . . . . . . . . . . . Power Chain Reactions 3 | . . . . . . . . . . . 1 . 2 . . . . . . . Alert | -11 -10 -10 -9 -9 -9 -8 -8 -7 -7 -7 -7 -7 -6 -5 -5 -4 -3 -2 -1 -1 ------- Run | Yrd Mat Min Mat Min Exi Min Mat Fac Was Fac Low Low Fac Fac Ext Fac Res Res Acc Com Maximum Alert Level 1 | . . . . . . . . . . . . . 1 . . . . . . . Low Security (%) 99 | 100 100 100 100 100 . 100 100 100 100 100 . . 92 100 100 100 100 100 100 100 Level 1 . | . . . . . . . . . . . . . 7 . . . . . . . Level 2 . | . . . . . . . . . . . . . . . . . . . . . Level 3 . | . . . . . . . . . . . . . . . . . . . . . Level 4 . | . . . . . . . . . . . . . . . . . . . . . Level 5 . | . . . . . . . . . . . . . . . . . . . . . High Security . | . . . . . . . . . . . . . . . . . . . . . Max Security . | . . . . . . . . . . . . . . . . . . . . . Peak Influence 359 | . 80 163 119 38 . 60 160 58 . 60 . . 359 167 40 15 57 6 22 . Initial 167 | . . 21 24 38 . . . 58 . . . . 42 167 . . . 3 1 . Average 28 | . 30 51 33 5 . 15 40 18 . . . . 92 36 5 1 16 . 3 . Influence Increases 2997 | . 413 243 365 . . 70 223 51 . 65 356 30 739 97 116 41 101 19 68 . Destroy 0b10 Robot/C 1280 | . 260 100 240 . . 40 . 20 . 20 220 20 240 40 80 . . . . . Destroy 0b10 Robot/NC 130 | . 15 . 35 . . . 5 15 . . . . 40 . . 10 . 5 5 . Destroy Leader 282 | . 44 20 58 . . . 2 16 . 10 40 10 54 10 10 4 . 2 2 . Allied During Kill 133 | . . . . . . . . . . 30 96 . . . 7 . . . . . Successful Hack 194 | . 33 . 14 . . . 6 . . 5 . . 34 . 4 12 82 . 4 . Disable Machine 375 | . . 60 15 . . . . . . . . . 285 15 . . . . . . Destroy Structure 108 | . 1 33 3 . . . . . . . . . 41 2 . . 4 12 12 . Partial Spotted 135 | . 15 . . . . . 15 . . . . . 15 30 . . 15 . 45 . Lose Combat Pursuer 360 | . 45 30 . . . 30 195 . . . . . 30 . 15 15 . . . . Influence Decreases 2997 | . 359 234 329 99 . 70 93 181 . 65 260 59 464 439 116 41 95 22 71 . Entered New Map 429 | . . 33 39 61 . . . 72 . . . 19 25 175 . . . 3 2 . Time Decay 2152 | . 340 201 290 38 . 70 83 109 . 5 170 40 301 235 62 31 95 19 63 . Lost Part 94 | . 19 . . . . . 10 . . . . . 20 29 . 10 . . 6 . Lost Ally 204 | . . . . . . . . . . 60 90 . . . 54 . . . . . Purge Threat 118 | . . . . . . . . . . . . . 118 . . . . . . . Squads Dispatched 22 | . 2 . 3 . . . 1 . . . . . 3 3 . 2 2 2 4 . Investigation 4 | . 1 . 1 . . . . . . . . . 2 . . . . . . . Extermination 6 | . . . . . . . . . . . . . 1 1 . 1 . 1 2 . Reinforcement 12 | . 1 . 2 . . . 1 . . . . . . 2 . 1 2 1 2 . Assault . | . . . . . . . . . . . . . . . . . . . . . Garrison . | . . . . . . . . . . . . . . . . . . . . . Intercept . | . . . . . . . . . . . . . . . . . . . . . Searches Triggered . | . . . . . . . . . . . . . . . . . . . . . Construction Impeded . | . . . . . . . . . . . . . . . . . . . . . Haulers Reinforced . | . . . . . . . . . . . . . . . . . . . . . Active Scanning Responses . | . . . . . . . . . . . . . . . . . . . . . Cargo Convoy Interrupts . | . . . . . . . . . . . . . . . . . . . . . Stealth | -11 -10 -10 -9 -9 -9 -8 -8 -7 -7 -7 -7 -7 -6 -5 -5 -4 -3 -2 -1 -1 --------- Run | Yrd Mat Min Mat Min Exi Min Mat Fac Was Fac Low Low Fac Fac Ext Fac Res Res Acc Com Distress Signals 6 | . 2 . 1 . . . . . . . . . . . 1 1 . . 1 . Communications Jammed 4 | . . . . . . . . . . . . . 1 . . . 3 . . . Distress Signals 3 | . . . . . . . . . . . . . . . . . 3 . . . Times Spotted 163 | . 22 9 25 . . 4 22 5 1 . 10 1 15 5 15 3 3 4 8 11 Peak Tracking Total 11 | . 4 3 5 . . 3 9 1 1 . 4 1 5 3 11 3 3 2 4 10 Tactical Retreats 20 | . 2 1 . . . 1 5 . . . . . 2 1 1 1 1 . 4 1 Traps | -11 -10 -10 -9 -9 -9 -8 -8 -7 -7 -7 -7 -7 -6 -5 -5 -4 -3 -2 -1 -1 ------- Run | Yrd Mat Min Mat Min Exi Min Mat Fac Was Fac Low Low Fac Fac Ext Fac Res Res Acc Com Traps Triggered 15 | . 1 . . . . . . 2 . 2 . . 2 . . 2 . . . 6 Indirectly . | . . . . . . . . . . . . . . . . . . . . . Trap Hack Attempts . | . . . . . . . . . . . . . . . . . . . . . Triggered . | . . . . . . . . . . . . . . . . . . . . . Disarmed . | . . . . . . . . . . . . . . . . . . . . . Reprogrammed . | . . . . . . . . . . . . . . . . . . . . . Reused . | . . . . . . . . . . . . . . . . . . . . . Traps Extracted . | . . . . . . . . . . . . . . . . . . . . . Installed . | . . . . . . . . . . . . . . . . . . . . . Triggered . | . . . . . . . . . . . . . . . . . . . . . Objects Rigged 13 | . . . . . . . . . . . . . 13 . . . . . . . Exploded 1 | . . . . . . . . . . . . . 1 . . . . . . . Machines | -11 -10 -10 -9 -9 -9 -8 -8 -7 -7 -7 -7 -7 -6 -5 -5 -4 -3 -2 -1 -1 ---------- Run | Yrd Mat Min Mat Min Exi Min Mat Fac Was Fac Low Low Fac Fac Ext Fac Res Res Acc Com Machines Disabled 26 | . . 4 1 . . . . . . . 1 . 19 1 . . . . . . Max in Single Turn 16 | . . 4 1 . . . . . . . 1 . 16 1 . . . . . . Garrison Access 7 | . . . . . . . . 1 . 1 . . 2 1 . 1 1 . . . Machines Repaired . | . . . . . . . . . . . . . . . . . . . . . Machines Dismantled . | . . . . . . . . . . . . . . . . . . . . . Machines Sabotaged . | . . . . . . . . . . . . . . . . . . . . . Overloaded Fab Kills . | . . . . . . . . . . . . . . . . . . . . . Hacking | -11 -10 -10 -9 -9 -9 -8 -8 -7 -7 -7 -7 -7 -6 -5 -5 -4 -3 -2 -1 -1 --------- Run | Yrd Mat Min Mat Min Exi Min Mat Fac Was Fac Low Low Fac Fac Ext Fac Res Res Acc Com Machines Accessed 65 | . 8 1 5 . 1 . 2 4 . 2 1 . 13 5 7 6 4 . 4 2 Terminals 45 | . 7 . 4 . . . 2 . . 1 . . 9 3 7 5 2 . 3 2 Fabricators 2 | . . . . . . . . 2 . . . . . . . . . . . . Repair Stations 1 | . . . . . . . . . . . . . . . . . 1 . . . Recycling Units 6 | . 1 . 1 . . . . . . . . . 2 1 . . . . 1 . Scanalyzers 1 | . . . . . . . . 1 . . . . . . . . . . . . Garrison Access 7 | . . . . . . . . 1 . 1 . . 2 1 . 1 1 . . . Total Hacks 152 | . 20 1 18 . 1 . 8 8 . 5 1 . 36 11 13 8 10 . 5 7 Successful 84 | . 7 1 8 . 1 . 3 4 . 3 1 . 22 7 7 4 7 . 4 5 Failed 68 | . 13 . 10 . . . 5 4 . 2 . . 14 4 6 4 3 . 1 2 Catastrophic 9 | . . . 3 . . . . . . 1 . . 1 . 1 2 . . 1 . Database Lockouts . | . . . . . . . . . . . . . . . . . . . . . Manual 12 | . . . 1 . 1 . 1 . . 1 1 . 5 1 . . 1 . . . Terminals 117 | . 16 . 15 . . . 8 . . 3 . . 30 8 13 7 7 . 3 7 Fabricators 2 | . . . . . . . . 2 . . . . . . . . . . . . Repair Stations 1 | . . . . . . . . . . . . . . . . . 1 . . . Recycling Units 15 | . 4 . 3 . . . . . . . . . 4 2 . . . . 2 . Scanalyzers 3 | . . . . . . . . 3 . . . . . . . . . . . . Garrison Access 11 | . . . . . . . . 3 . 2 . . 2 1 . 1 2 . . . Terminal Hacks 62 | . 4 1 7 . 1 . 3 . . 2 1 . 16 4 7 3 5 . 3 5 Record 12 | . . . . . . . . . . . . . 2 2 1 2 2 . . 3 Part Schematic 1 | . . . . . . . . . . . . . 1 . . . . . . . Robot Analysis 3 | . 1 . . . . . . . . 1 . . . 1 . . . . . . Prototype ID Bank 5 | . 1 . 1 . . . . . . . . . 1 1 . . 1 . . . Open Door 10 | . . 1 . . . . . . . . 1 . . . 5 . . . 3 . Level Access Points 4 | . 1 . . . . . . . . . . . 1 . . . 1 . . 1 Branch Access Points 3 | . . . . . . . 1 . . . . . . . 1 1 . . . . Emergency Access Points 1 | . . . . . . . . . . . . . . . . . . . . 1 Alert Level 1 | . . . . . . . . . . 1 . . . . . . . . . . Unreport Threat 2 | . . . . . . . . . . . . . 2 . . . . . . . Locate Traps 6 | . . . 2 . . . . . . . . . 4 . . . . . . . Surveillance Status 2 | . . . 1 . . . . . . . . . 1 . . . . . . . Investigation Status 1 | . 1 . . . . . . . . . . . . . . . . . . . Reinforcement Status 2 | . . . . . . . . . . . . . 2 . . . . . . . Recall Investigation 2 | . . . 1 . . . . . . . . . 1 . . . . . . . Registered Components 1 | . . . . . . . 1 . . . . . . . . . . . . . Zone Layout 5 | . . . 2 . . . 1 . . . . . 1 . . . 1 . . . Proto ID Catalog 1 | . . . . . 1 . . . . . . . . . . . . . . . Fabricator Hacks 2 | . . . . . . . . 2 . . . . . . . . . . . . Network Status 2 | . . . . . . . . 2 . . . . . . . . . . . . Repair Station Hacks 1 | . . . . . . . . . . . . . . . . . 1 . . . Scan Component 1 | . . . . . . . . . . . . . . . . . 1 . . . Recycling Unit Hacks 10 | . 3 . 1 . . . . . . . . . 3 2 . . . . 1 . Report Inventory 7 | . 1 . 1 . . . . . . . . . 3 1 . . . . 1 . Retrieve Matter 1 | . . . . . . . . . . . . . . 1 . . . . . . Retrieve Components 2 | . 2 . . . . . . . . . . . . . . . . . . . Scanalyzer 1 | . . . . . . . . 1 . . . . . . . . . . . . Insert Component 1 | . . . . . . . . 1 . . . . . . . . . . . . Garrison Access Hacks 7 | . . . . . . . . 1 . 1 . . 2 1 . 1 1 . . . Seal Access 7 | . . . . . . . . 1 . 1 . . 2 1 . 1 1 . . . Unauthorized Hacks 1 | . . . . . . . . . . . . . 1 . . . . . . . Terminals 1 | . . . . . . . . . . . . . 1 . . . . . . . Detonate 1 | . . . . . . . . . . . . . 1 . . . . . . . Fabricators . | . . . . . . . . . . . . . . . . . . . . . Repair Stations . | . . . . . . . . . . . . . . . . . . . . . Recycling Units . | . . . . . . . . . . . . . . . . . . . . . Scanalyzers . | . . . . . . . . . . . . . . . . . . . . . Garrison Access . | . . . . . . . . . . . . . . . . . . . . . Data Cores Recovered . | . . . . . . . . . . . . . . . . . . . . . Used . | . . . . . . . . . . . . . . . . . . . . . Hacking Detections 45 | . 7 . 5 . . . 2 1 . 1 . . 11 3 4 4 4 . 1 2 Full Trace Events 6 | . 2 . 1 . . . 1 . . . . . 2 . . . . . . . Feedback Events 1 | . . . . . . . . . . . . . 1 . . . . . . . Hackware Fried 1 | . . . . . . . . . . . . . 1 . . . . . . . Feedback Blocked . | . . . . . . . . . . . . . . . . . . . . . Robot Schematics Acquired . | . . . . . . . . . . . . . . . . . . . . . Robots Built . | . . . . . . . . . . . . . . . . . . . . . Authchips . | . . . . . . . . . . . . . . . . . . . . . Time . | . . . . . . . . . . . . . . . . . . . . . Total Robot Build Rating . | . . . . . . . . . . . . . . . . . . . . . Part Schematics Acquired 1 | . . . . . . . . . . . . . 1 . . . . . . . Parts Built . | . . . . . . . . . . . . . . . . . . . . . Authchips . | . . . . . . . . . . . . . . . . . . . . . Time . | . . . . . . . . . . . . . . . . . . . . . Total Part Build Rating . | . . . . . . . . . . . . . . . . . . . . . Parts Repaired . | . . . . . . . . . . . . . . . . . . . . . Time . | . . . . . . . . . . . . . . . . . . . . . Parts Recycled . | . . . . . . . . . . . . . . . . . . . . . Recycled Matter . | . . . . . . . . . . . . . . . . . . . . . Retrieved Matter . | . . . . . . . . . . . . . . . . . . . . . Retrieved Components 5 | . 5 . . . . . . . . . . . . . . . . . . . Parts Scanalyzed 1 | . . . . . . . . 1 . . . . . . . . . . . . Part Schematics Acquired . | . . . . . . . . . . . . . . . . . . . . . Parts Damaged . | . . . . . . . . . . . . . . . . . . . . . Bothacking | -11 -10 -10 -9 -9 -9 -8 -8 -7 -7 -7 -7 -7 -6 -5 -5 -4 -3 -2 -1 -1 ------------ Run | Yrd Mat Min Mat Min Exi Min Mat Fac Was Fac Low Low Fac Fac Ext Fac Res Res Acc Com Used RIF Installer . | . . . . . . . . . . . . . . . . . . . . . Robots Hacked . | . . . . . . . . . . . . . . . . . . . . . Non-combat . | . . . . . . . . . . . . . . . . . . . . . Combat . | . . . . . . . . . . . . . . . . . . . . . Robot Hacks Applied . | . . . . . . . . . . . . . . . . . . . . . Relay Couplers Released 2 | . . . . . . . . . . . . . 2 . . . . . . . Machine Destruction 2 | . . . . . . . . . . . . . 2 . . . . . . . Fabnet Peak Effective % . | . . . . . . . . . . . . . . . . . . . . . Robots Rewired . | . . . . . . . . . . . . . . . . . . . . . Allies Hacked . | . . . . . . . . . . . . . . . . . . . . . Hacks Repelled . | . . . . . . . . . . . . . . . . . . . . . Allies | -11 -10 -10 -9 -9 -9 -8 -8 -7 -7 -7 -7 -7 -6 -5 -5 -4 -3 -2 -1 -1 -------- Run | Yrd Mat Min Mat Min Exi Min Mat Fac Was Fac Low Low Fac Fac Ext Fac Res Res Acc Com Total Allies 26 | . . . . . . . . . 20 . . . . . 6 . . . . . Largest Group 20 | . . . . . . . . . 20 19 11 . . . 4 . . . . . Highest-Rated Group 486 | . . . . . . . . . 486 472 279 . . . 96 . . . . . Highest-Rated Ally 35 | . . . . . . . . . 35 35 35 . . . 31 . . . . . Total Orders . | . . . . . . . . . . . . . . . . . . . . . Ally Attacks 109 | . . . . . . . . . 1 19 78 . . . 11 . . . . . Total Damage 1781 | . . . . . . . . . . 207 1180 . . . 394 . . . . . Kills 10 | . . . . . . . . . . 1 8 . . . 1 . . . . . Allies Corrupted . | . . . . . . . . . . . . . . . . . . . . . Allies Melted 1 | . . . . . . . . . . . . . . . 1 . . . . . Intel | -11 -10 -10 -9 -9 -9 -8 -8 -7 -7 -7 -7 -7 -6 -5 -5 -4 -3 -2 -1 -1 ------- Run | Yrd Mat Min Mat Min Exi Min Mat Fac Was Fac Low Low Fac Fac Ext Fac Res Res Acc Com Active Infowar (turns) 3611 | . 162 . . . . . . . . . . . 462 867 478 495 295 336 442 74 Optics 2984 | . . . . . . . . . . . . . . 864 478 495 295 336 442 74 Triangulation 405 | . . . . . . . . . . . . . . . . . . . 349 56 Cloaking 442 | . . . . . . . . . . . . . . 442 . . . . . . Jamming 1934 | . . . . . . . . . . . . . 458 393 19 66 199 336 407 56 ECM 1147 | . 162 . . . . . . . . . . . 115 49 2 42 198 252 271 56 Robot Analysis Total 3 | . 1 . . . . . . . . 1 . . . 1 . . . . . . Derelict Logs Recovered 3 | . . 1 . 1 . . . . . . . 1 . . . . . . . . Drone Launches . | . . . . . . . . . . . . . . . . . . . . . Drone Recoveries . | . . . . . . . . . . . . . . . . . . . . . Exploration | -11 -10 -10 -9 -9 -9 -8 -8 -7 -7 -7 -7 -7 -6 -5 -5 -4 -3 -2 -1 -1 ------------- Run | Yrd Mat Min Mat Min Exi Min Mat Fac Was Fac Low Low Fac Fac Ext Fac Res Res Acc Com Turns Passed 8924 | 89 962 680 770 333 311 275 351 292 280 334 372 83 789 867 494 495 295 336 442 74 Spaces Moved 9405 | 52 531 496 378 265 424 263 391 420 258 406 408 143 900 753 368 1177 478 287 783 224 Core 32 | 13 . . . . . . . . . . . . 2 . 8 . . . . 9 Treads . | . . . . . . . . . . . . . . . . . . . . . Legs 1883 | 39 531 496 378 265 133 . . . . . . . . . 41 . . . . . Wheels . | . . . . . . . . . . . . . . . . . . . . . Hover 484 | . . . . . . . . . . . . . . 376 108 . . . . . Flight 7006 | . . . . . 291 263 391 420 258 406 408 143 898 377 211 1177 478 287 783 215 Fastest Speed 6 | 50 120 120 122 122 50 50 50 50 50 50 50 50 34 32 14 14 18 12 22 6 Average Speed 55 | 121 120 122 122 122 72 50 50 50 50 50 50 50 48 46 50 26 26 23 22 23 Slowest Speed 600 | 250 120 195 123 122 122 50 50 50 50 50 50 50 600 300 190 109 28 25 22 50 Overloaded Moves 393 | . . . . . . . . . . . . . . . 83 128 93 81 . 8 Propulsion Burnouts 1 | . . . . . . . . . . . . . . . . 1 . . . . Robots Hopped 25 | . . . . . . . 9 1 . . . . 1 1 3 1 6 . 2 1 Potential Cave-ins . | . . . . . . . . . . . . . . . . . . . . . Cave-ins Triggered . | . . . . . . . . . . . . . . . . . . . . . Exploration Rate (%) 38 | 5 94 76 39 63 90 47 29 10 96 13 50 16 22 19 51 36 15 7 17 11 Regions Visited 20 Branch Regions 8 Pre-discovered Areas . | . . . . . . . . . . . . . . . . . . . . . Known Exits Taken 10 | . 1 1 . . . . . . . . . 1 1 1 1 1 1 1 1 . Unknown Exits Taken 8 | 1 . . 1 1 1 1 1 . . 1 1 . . . . . . . . . Scrap Searched 6 | . . 1 . 2 . 1 . . . . 2 . . . . . . . . . Spaces Dug 11 | . . . . . . . . . . . . . . 1 . . 2 4 4 . Terrain Destroyed 91 | . . 35 . . . . . . . . 6 . 39 1 . . 2 4 4 . Melee 11 | . . . . . . . . . . . . . . 1 . . 2 4 4 . Projectile 11 | . . . . . . . . . . . 3 . 8 . . . . . . . AOE 69 | . . 35 . . . . . . . . 3 . 31 . . . . . . . Terrain Rammed . | . . . . . . . . . . . . . . . . . . . . . Walls Destroyed . | . . . . . . . . . . . . . . . . . . . . . Machines Disabled . | . . . . . . . . . . . . . . . . . . . . . Actions | -11 -10 -10 -9 -9 -9 -8 -8 -7 -7 -7 -7 -7 -6 -5 -5 -4 -3 -2 -1 -1 --------- Run | Yrd Mat Min Mat Min Exi Min Mat Fac Was Fac Low Low Fac Fac Ext Fac Res Res Acc Com Total 12659 | 77 774 550 621 275 428 398 524 488 390 537 554 151 1207 1228 660 1349 629 540 1034 245 Wait 2588 | 10 168 10 184 9 . 131 115 36 114 122 120 5 201 413 217 125 131 237 230 10 Move 9337 | 51 530 495 377 264 423 262 373 418 257 405 407 142 897 750 361 1173 466 286 778 222 Hop 23 | . . . . . . . 8 1 . . . . 1 1 3 1 5 . 2 1 Pick Up 136 | 10 14 9 7 1 . . 8 7 4 4 4 . 22 12 16 5 6 3 3 1 Fast Attach 33 | . . . 1 . 1 . . 1 . . 3 1 5 2 8 8 1 . 1 1 Attach 80 | 6 4 1 2 . . . 3 2 . . . . 15 15 11 8 6 2 4 1 Detach 23 | . . . . . . . . . . . . . 7 5 4 3 3 . 1 . Swap 69 | . 6 8 5 . . 1 1 5 1 2 2 2 7 6 9 10 . 2 1 1 Drop 123 | . 8 13 8 1 4 . 7 6 4 4 7 . 23 4 19 11 1 1 2 . Fire 194 | . 44 14 37 . . 4 9 7 10 . 11 1 28 4 5 . 8 4 8 . Melee 39 | . . . . . . . . . . . . . 1 16 7 4 2 5 4 . Ram . | . . . . . . . . . . . . . . . . . . . . . Kick . | . . . . . . . . . . . . . . . . . . . . . Crush . | . . . . . . . . . . . . . . . . . . . . . Escape Stasis 14 | . . . . . . . . 5 . . . . . . . 1 . . . 8 Rewire . | . . . . . . . . . . . . . . . . . . . . . Trap . | . . . . . . . . . . . . . . . . . . . . . Miscellaneous . | . . . . . . . . . . . . . . . . . . . . . Route ------- -11/Scrapyard -10/Materials (discovered 5 exits: *Mat x3 / *Min / *Sub) -10/Mines -9/Materials (discovered 2 exits: *Mat / [*Min]) -9/Mines -9/Exiles (discovered 2 exits: [*Min x2]) -8/Mines -8/Materials (discovered 2 exits: *Fac / Sto) -7/Factory -7/Waste -7/Factory -7/Lower Caves -7/Lower Caves -6/Factory (discovered 4 exits: *Fac x4) -5/Factory (discovered 2 exits: *Fac / *Ext) -5/Extension (discovered 2 exits: *Fac / *Cet) -4/Factory (discovered 3 exits: *Res / Upp x2) -3/Research (discovered 4 exits: *Res x3 / [*Arm]) -2/Research -1/Access -1/Command (discovered 2 exits: *Sur x2) History --------- Turn | Location | Event 24 | -11/Scrapyard | Discovered new exit (range 15) 90 | -11/Scrapyard | Entered Materials 306 | -10/Materials | Build established: Mutant 315 | -10/Materials | Discovered new exit (range 16) 334 | -10/Materials | Identified exit to Materials 514 | -10/Materials | Discovered exit to Materials (range 5) 608 | -10/Materials | Discovered exit to Materials (range 10) 804 | -10/Materials | Discovered new exit (range 6) 812 | -10/Materials | Identified exit to Subcaves 948 | -10/Materials | Discovered new exit (range 15) 1051 | -10/Materials | Identified exit to Mines 1052 | -10/Materials | Entered Mines 1481 | -10/Mines | Met a Derelict who couldn't figure out how to use a Trap Extractor 1551 | -10/Mines | Discovered exit to Materials (range 12) 1732 | -10/Mines | Entered Materials 1732 | -9/Materials | Evolved 2 slots: Propulsion x2 2143 | -9/Materials | Discovered new exit (range 17) 2269 | -9/Materials | Build established: Scavenger-Mutant 2385 | -9/Materials | Discovered new exit (range 14) 2502 | -9/Materials | Entered Mines 2627 | -9/Mines | Met a Derelict bent on vengeance 2830 | -9/Mines | Deemed a non-threat by the Exiles lab entrance 2830 | -9/Mines | Discovered new exit (range 5) 2835 | -9/Mines | Entered Exiles 2853 | -9/Exiles | Discovered new exit (range 15) 2883 | -9/Exiles | Met 8R-AWN 2904 | -9/Exiles | Met EX-HEX 2939 | -9/Exiles | Met EX-BIN 2955 | -9/Exiles | Aligned with FarCom system 2956 | -9/Exiles | Given EX-Vault access code 2989 | -9/Exiles | Opened EX-Vault 3000 | -9/Exiles | Found Flying Fortress v7 3012 | -9/Exiles | Warned to stay clear of 0b10 Research branches 3028 | -9/Exiles | Met EX-DEC 3044 | -9/Exiles | Visited The Gauntlet 3129 | -9/Exiles | Discovered new exit (range 12) 3146 | -9/Exiles | Left Exiles lab with Flying Fortress v7 3146 | -9/Exiles | Entered Mines 3289 | -8/Mines | Build established: Mutant 3416 | -8/Mines | Discovered new exit (range 11) 3421 | -8/Mines | Entered Materials 3421 | -8/Materials | Evolved 2 slots: Utility x2 3422 | -8/Materials | Identified exit to Storage 3728 | -8/Materials | Build established: Hacker-Mutant 3770 | -8/Materials | Discovered new exit (range 4) 3772 | -8/Materials | Entered Factory 3772 | -7/Factory | Evolved 2 slots: Utility x2 4064 | -7/Factory | Sucked down chute 4064 | -7/Factory | Entered Waste 4065 | -7/Waste | Joined by Warlord forces that had cleared the area 4084 | -7/Waste | A Compactor rumbled back to life 4085 | -7/Waste | Destroyed C-40 Crusher 4131 | -7/Waste | Discovered new exit (range 12) 4344 | -7/Waste | Entered Factory 4344 | -7/Factory | Accompanied by 19 allies 4421 | -7/Factory | Lost 4 allies 4471 | -7/Factory | Lost 3 allies 4604 | -7/Factory | Discovered new exit (range 4) 4678 | -7/Factory | Entered Lower Caves 4678 | -7/Lower Caves | Accompanied by 11 allies 4693 | -7/Lower Caves | Spotted B-75 Beast 4705 | -7/Lower Caves | Destroyed B-75 Beast 4733 | -7/Lower Caves | Lost 5 allies 4810 | -7/Lower Caves | Found DCF Scrap (11 items) 4888 | -7/Lower Caves | Acquired the password to a Derelict Tinkerer's latest research 4894 | -7/Lower Caves | Found Prototype Special Weapon 4894 | -7/Lower Caves | Identified Molecular Deconstructor 5008 | -7/Lower Caves | Caught by Unaware searching for contraband prototypes 5030 | -7/Lower Caves | Encountered a Warlord checkpoint 5045 | -7/Lower Caves | Discovered new exit (range 12) 5050 | -7/Lower Caves | Entered another Lower Caves area 5114 | -7/Lower Caves | Identified exit to Factory 5133 | -7/Lower Caves | Entered Factory 5133 | -6/Factory | Evolved 2 slots: Utility x2 5145 | -6/Factory | Mak. Hacking Suite fried by hacking feedback 5447 | -6/Factory | System corruption reached 10% 5659 | -6/Factory | Identified exit to Factory 5922 | -6/Factory | Entered another Factory area 5922 | -5/Factory | Evolved 2 slots: Utility x2 6479 | -5/Factory | Lost 10 parts (1p4n5u) 6699 | -5/Factory | Discovered new exit (range 21) 6711 | -5/Factory | Identified exit to Factory 6767 | -5/Factory | Discovered new exit (range 13) 6769 | -5/Factory | Build established: Scavenger-Mutant 6788 | -5/Factory | Identified exit to Extension 6789 | -5/Factory | Entered Extension 6823 | -5/Extension | Rescued a captive Derelict 6824 | -5/Extension | Rescued a captive Derelict 6845 | -5/Extension | Lost 3 parts (2n1u) 7111 | -5/Extension | Build established: Hacker-Mutant 7174 | -5/Extension | Identified exit to Cetus 7184 | -5/Extension | Rescued a captive Derelict 7191 | -5/Extension | Rescued a captive Derelict 7202 | -5/Extension | Rescued a captive Derelict 7224 | -5/Extension | Spotted B-75 Beast 7242 | -5/Extension | Rescued a captive Derelict 7242 | -5/Extension | Spotted B-75 Beast 7243 | -5/Extension | Rescued a captive Derelict 7279 | -5/Extension | Discovered exit to Factory (range 14) 7283 | -5/Extension | Entered Factory 7283 | -4/Factory | Evolved 2 slots: Power x1, Utility x1 7518 | -4/Factory | Found Exp. Signal Interpreter 7645 | -4/Factory | Identified exit to Upper Caves 7654 | -4/Factory | Discovered new exit (range 7) 7656 | -4/Factory | Identified exit to Research 7743 | -4/Factory | Lost 4 parts (2p2u) 7753 | -4/Factory | Build established: Hacker-Sprinter 7778 | -4/Factory | Entered Research 7778 | -3/Research | Evolved 2 slots: Propulsion x1, Utility x1 7912 | -3/Research | Identified exit to Research 8067 | -3/Research | Discovered new exit (range 16) 8073 | -3/Research | Entered another Research area 8073 | -2/Research | Evolved 2 slots: Propulsion x1, Utility x1 8112 | -2/Research | Discovered new exit (range 13) 8402 | -2/Research | Identified exit to Access 8409 | -2/Research | Entered Access 8409 | -1/Access | Evolved 2 slots: Propulsion x1, Utility x1 8477 | -1/Access | Found Prototype Device 8478 | -1/Access | Identified Exp. Shield Generator 8828 | -1/Access | Discovered new exit (range 7) 8829 | -1/Access | Identified exit to Command 8838 | -1/Access | Lost 3 parts (1p2w) 8851 | -1/Access | Entered Command 8891 | -1/Command | Identified exit to Surface 8904 | -1/Command | Spotted Alpha 7 8904 | -1/Command | Spotted Striker 8904 | -1/Command | Spotted Executioner 8904 | -1/Command | Spotted Executioner 8904 | -1/Command | Spotted Alpha 7 8904 | -1/Command | Spotted Striker 8904 | -1/Command | Spotted Executioner 8904 | -1/Command | Spotted Executioner 8908 | -1/Command | Spotted B-99 Colossus 8910 | -1/Command | Spotted B-99 Colossus 8920 | -1/Command | Core integrity fell below 50% 8923 | -1/Command | Core integrity fell below 20% 8925 | -1/Command | Destroyed by Executioner with Helical Railgun Last Messages --------------- 08922_ Penetrated by Slug. 08922_ Field strength at 58. 08923_ Field strength at 36. 08923_ Field strength at 52. 08924_ Field strength at 28. 08924_ Penetrated by Slug. 08924_ Slug penetrates Wall. 08924_ Penetrated by Slug. 08924_ Slug penetrates Wall. 08924_ Field strength at 19. 08925_ Field strength at 20. 08925_ Slug penetrates Striker. 08925_ Slug penetrates Wall. 08925_ Penetrated by Slug. 08925_ Slug penetrates Wall. 08925_ Field strength at 4. 08925_ Slug penetrates Executioner. 08925_ Slug penetrates Striker. 08925_ Penetrated by Slug. 08925_ Stasis field depleted. Map ----- +----------------------------------------------------+ | ??????????????# ## #????????? | | ??????????????# ## #????????? | | ??????????????# ## #????????? | | ??????????????# ## #????????? | | ??????????????#########+#############+###????????? | | ??????????????#####?# #????????? | | ??????????????# " #????????? | | ??????????????# # +????????? | | ??????????????# + #????????? | | ??????????????# # "###########+#+#????????? | | ??????????????# # #??????# +????????? | | ??????????????# # #??????# #????????? | | ??????????????# + #??????# "" #????????? | | ??????????????# # #??????# "" #????????? | | ??????????????# # #??????# "T #????????? | | ??????????????#####?#%%% #??????# "" #????????? | | ???????????????????##;;+;##?????# "" #????????? | | ???????????????????# % ##????# #????????? | | ??????????????????## K ^ ;#????# #????????? | | ??????????????????# ^ %^% #????# #????????? | | ??????????????????## ^%% ##????# #????????? | | ??????????????????# 7 ^ #????#########????????? | | ??????????????????## E7##?????????????????????? | | ??????????????????# EE #?????????????????????? | | ??????????????????##^ ^ KE;##????????????????????? | | ??????????????????# BB @ ;#????????????????????? | | ??????????????????##BB ;;#????????????????????? | | ????????????????# % BB#???????????????????? | | ????????????????# BB#???????????????????? | | ????????????????# ^ #???????????????????? | | ????????????????# ^ #???????????????????? | | ??????????s?????# #???????????????????? | | ?????????s?s????# "" #???????????????????? | | ?????????s?s????# "< #???????????????????? | | ????????????????# #???????????????????? | | ????????????????# #???????????????????? | | ????????????????# ^ #???????????????????? | | ????????????????# #???????????????????? | | ????????????????# #???????????????????? | | ????????????????##############???????????????????? | | ?????????????????????????????????????????????????? | | ?????????????????????????????????????????????????? | | ?????????????????????????????????????????????????? | | ?????????????????????????????????????????????????? | | ?????????????????????????????????????????????????? | | ?????????????????????????????????????????????????? | | ?????????????????????????????????????????????????? | | ?????????????????????????????????????????????????? | | ?????????????????????????????????????????????????? | | ?????????????????????????????????????????????????? | +----------------------------------------------------+ Best States ------------- Heat Dissipation 91 Energy Generation 57 Energy Capacity 385 Matter Stores 300 Matter Capacity 300 Sight Range 22 Terrain Scan Density 10 ECM Strength 2 Jamming Range 16 Cloak Strength 2 Power Amplification 30 Additional Mass Support 20 Armor Coverage 375 Propulsion Shielding 66 Evasion (%) 77 Melee Accuracy 6 Energy Filtering 30 Offensive Hacking 34 Defensive Hacking 12 Item Schematics ----------------- Cld. VTOL Module | -6/Factory | Hacked Robot Schematics ------------------ None Fabricated ------------ Nothing Repaired ---------- Nothing Alien Tech Used ----------------- None Achievements -------------- Deadly Force It Was An Accident, I Swear Overkill Use The Force We Are Legion Challenges ------------ None Game ------ Seed TeleporterSegregatorStreamer Manual? 0 Play Time 03:18:37 Cumulative 29.9 hours Start 2025.08.02 @ 20:27:10 End 2025.08.03 @ 00:02:16 Sessions 1 Manual Loads 0 Difficulty Rogue Special Mode None Game No. 21 Rogue 21 Adventurer 0 Explorer 0 Win Type - Total 0 Types 0/0/0/0/0/0/0/0/0/0 Lore% 21 Gallery% 27 Achievement% 30 Wizard Run 0 Options --------- Layout 1 ASCII 0 Keyboard 0 Movement Mouse Keybinds 0 Fullscreen 1 Font 24/Smallcaps Map View 50x35 Zoom Use 0% Tactical HUD 1 Map Filters NONE Filters NONE Steam 1 RUN: 60184122-1fb4-4194-8dcd-c28cc146ccb9